[Event "Championnat d'Europe Rapide"]
[Date "2024.12.08"]
[White "Diermair, Andreas"]
[Black "Cvitan, Ognjen"]
[WhiteElo "2433"]
[BlackElo "2413"]
[Round "8.24"]
[Result "0-1"]
[TimeControl "900+10"]

1. d4 {[%clk 00:15:17]} Nf6 {[%emt 00:00:06] [%clk 00:15:14]} 2. Nf3 {[%emt
00:00:03] [%clk 00:15:25]} d5 {[%emt 00:00:06] [%clk 00:15:18]} 3. g3 {[%emt
00:00:03] [%clk 00:15:32]} e6 {[%emt 00:01:03] [%clk 00:14:25]} 4. Bg2 {[%emt
00:00:02] [%clk 00:15:39]} Be7 {[%emt 00:00:02] [%clk 00:14:33]} 5. c4 {[%emt
00:00:17] [%clk 00:15:33]} O-O {[%emt 00:00:03] [%clk 00:14:40]} 6. Nc3 {[%emt
00:00:03] [%clk 00:15:40]} c6 {[%emt 00:00:13] [%clk 00:14:37]} 7. O-O {[%emt
00:00:08] [%clk 00:15:42]} a5 {[%emt 00:00:07] [%clk 00:14:40]} 8. Nd2 {[%emt
00:00:26] [%clk 00:15:26]} b5 {[%emt 00:00:36] [%clk 00:14:14]} 9. cxb5 {[%emt
00:01:22] [%clk 00:14:14]} cxb5 {[%emt 00:00:02] [%clk 00:14:22]} 10. Nxb5
{[%emt 00:00:04] [%clk 00:14:20]} Qb6 {[%emt 00:00:19] [%clk 00:14:13]} 11. a4
{[%emt 00:00:31] [%clk 00:13:59]} Nc6 {[%emt 00:00:02] [%clk 00:14:21]} 12. e4
{[%emt 00:01:57] [%clk 00:12:11]} Ba6 {[%emt 00:01:12] [%clk 00:13:19]} 13. exd5
{[%emt 00:00:39] [%clk 00:11:43]} exd5 {[%emt 00:00:02] [%clk 00:13:27]} 14. Nf3
{[%emt 00:00:56] [%clk 00:10:57]} Bxb5 {[%emt 00:01:16] [%clk 00:12:21]} 15.
axb5 {[%emt 00:00:12] [%clk 00:10:55]} Qxb5 {[%emt 00:00:02] [%clk 00:12:29]}
16. Ne5 {[%emt 00:00:29] [%clk 00:10:36]} Bd6 {[%emt 00:02:46] [%clk 00:09:52]}
17. Re1 {[%emt 00:00:50] [%clk 00:09:56]} Rfe8 {[%emt 00:00:50] [%clk 00:09:12]}
18. Bf4 {[%emt 00:00:42] [%clk 00:09:25]} Bb4 {[%emt 00:00:47] [%clk 00:08:35]}
19. Re3 {[%emt 00:00:50] [%clk 00:08:45]} h6 {[%emt 00:02:12] [%clk 00:06:33]}
20. g4 {[%emt 00:00:37] [%clk 00:08:17]} Qb6 {[%emt 00:00:46] [%clk 00:05:58]}
21. g5 {[%emt 00:01:35] [%clk 00:06:52]} hxg5 {[%emt 00:00:10] [%clk 00:05:58]}
22. Bxg5 {[%emt 00:00:02] [%clk 00:07:00]} Nxe5 {[%emt 00:00:55] [%clk
00:05:13]} 23. dxe5 {[%emt 00:00:58] [%clk 00:06:12]} Ne4 {[%clk 00:05:21]} 24.
Bxe4 {[%emt 00:02:04] [%clk 00:04:19]} dxe4 {[%emt 00:00:01] [%clk 00:05:31]}
25. Qh5 {[%emt 00:00:08] [%clk 00:04:20]} Rxe5 {[%emt 00:04:08] [%clk 00:01:32]}
26. Rh3 {[%emt 00:00:11] [%clk 00:04:19]} f6 {[%emt 00:00:33] [%clk 00:01:09]}
27. Qh8+ {[%emt 00:00:29] [%clk 00:04:01]} Kf7 {[%clk 00:01:19]} 28. Qxa8 {[%emt
00:00:03] [%clk 00:04:08]} Rxg5+ {[%emt 00:00:02] [%clk 00:01:27]} 29. Rg3
{[%emt 00:01:19] [%clk 00:02:58]} Rxg3+ {[%emt 00:00:02] [%clk 00:01:36]} 30.
hxg3 {[%emt 00:00:01] [%clk 00:03:07]} e3 {[%clk 00:01:45]} 31. Qd5+ {[%emt
00:00:22] [%clk 00:02:56]} Kf8 {[%emt 00:00:01] [%clk 00:01:54]} 32. Kg2 {[%emt
00:00:49] [%clk 00:02:16]} e2 {[%emt 00:00:29] [%clk 00:01:36]} 33. Rh1 {[%emt
00:00:04] [%clk 00:02:22]} e1=Q {[%emt 00:00:23] [%clk 00:01:24]} 34. Rh8+
{[%emt 00:00:36] [%clk 00:15:10]} 0-1

[Site "Europe Echecs"]

[Event "Championnat d'Europe Rapide"]
[Date "2024.12.08"]
[White "Danov, Lyubomir"]
[Black "Kozul, Zdenko"]
[WhiteElo "2297"]
[BlackElo "2519"]
[Round "8.25"]
[Result "1-0"]
[TimeControl "900+10"]

1. b3 {[%emt 00:00:04] [%clk 00:15:15]} d5 {[%emt 00:00:05] [%clk 00:15:15]} 2.
Bb2 {[%emt 00:00:02] [%clk 00:15:22]} Nf6 {[%emt 00:00:01] [%clk 00:15:24]} 3.
Nf3 {[%emt 00:00:04] [%clk 00:15:28]} g6 {[%emt 00:00:01] [%clk 00:15:33]} 4. c4
{[%emt 00:00:06] [%clk 00:15:32]} Bg7 {[%emt 00:00:24] [%clk 00:15:20]} 5. cxd5
{[%emt 00:00:02] [%clk 00:15:40]} O-O {[%emt 00:00:02] [%clk 00:15:28]} 6. g3
{[%emt 00:00:09] [%clk 00:15:41]} Qxd5 {[%emt 00:01:57] [%clk 00:13:41]} 7. Bg2
{[%emt 00:00:04] [%clk 00:15:47]} Rd8 {[%emt 00:00:02] [%clk 00:13:49]} 8. O-O
{[%emt 00:00:06] [%clk 00:15:50]} Qh5 {[%emt 00:00:02] [%clk 00:13:57]} 9. d3
{[%emt 00:00:21] [%clk 00:15:40]} Bh3 {[%emt 00:00:09] [%clk 00:13:58]} 10. Nbd2
{[%emt 00:00:09] [%clk 00:15:40]} Nbd7 {[%emt 00:00:33] [%clk 00:13:35]} 11. Rc1
{[%emt 00:00:14] [%clk 00:15:36]} c6 {[%emt 00:00:01] [%clk 00:13:45]} 12. Nc4
{[%emt 00:01:04] [%clk 00:14:42]} Bh6 {[%emt 00:01:07] [%clk 00:12:48]} 13. Rc2
{[%emt 00:00:23] [%clk 00:14:29]} Nd5 {[%emt 00:00:27] [%clk 00:12:31]} 14. a3
{[%emt 00:00:19] [%clk 00:14:21]} a5 {[%emt 00:02:27] [%clk 00:10:13]} 15. Qe1
{[%emt 00:06:43] [%clk 00:07:47]} Nf4 {[%emt 00:01:28] [%clk 00:08:56]} 16. Bxh3
{[%emt 00:00:55] [%clk 00:07:01]} Nxh3+ {[%emt 00:00:06] [%clk 00:09:00]} 17.
Kg2 {[%emt 00:00:04] [%clk 00:07:06]} g5 {[%emt 00:00:31] [%clk 00:08:40]} 18.
Ng1 {[%emt 00:02:11] [%clk 00:05:05]} g4 {[%emt 00:00:14] [%clk 00:08:37]} 19.
f4 {[%emt 00:00:41] [%clk 00:04:34]} Qd5+ {[%emt 00:03:22] [%clk 00:05:25]} 20.
e4 {[%emt 00:00:03] [%clk 00:04:41]} Qxd3 {[%emt 00:00:02] [%clk 00:05:33]} 21.
Rc3 {[%emt 00:00:04] [%clk 00:04:47]} Qd4 {[%clk 00:05:42]} 22. Rc2 {[%emt
00:02:01] [%clk 00:02:55]} Qc5 {[%emt 00:00:23] [%clk 00:05:30]} 23. Nxh3 {[%emt
00:00:05] [%clk 00:02:59]} gxh3+ {[%clk 00:05:39]} 24. Kxh3 {[%emt 00:00:02]
[%clk 00:03:07]} Qb5 {[%emt 00:00:36] [%clk 00:05:14]} 25. Qc3 {[%emt 00:01:09]
[%clk 00:02:07]} f6 {[%emt 00:00:03] [%clk 00:05:21]} 26. a4 {[%emt 00:00:23]
[%clk 00:01:55]} Qh5+ {[%emt 00:01:33] [%clk 00:03:57]} 27. Kg2 {[%emt 00:00:01]
[%clk 00:02:04]} b6 {[%clk 00:04:06]} 28. e5 {[%emt 00:00:37] [%clk 00:01:37]}
Bg7 {[%emt 00:00:24] [%clk 00:03:52]} 29. Qe3 {[%emt 00:00:13] [%clk 00:01:34]}
fxe5 {[%emt 00:01:10] [%clk 00:02:52]} 30. Nxe5 {[%emt 00:00:07] [%clk
00:01:37]} Nxe5 {[%emt 00:00:29] [%clk 00:02:33]} 31. Bxe5 {[%emt 00:00:06]
[%clk 00:01:41]} Bxe5 {[%emt 00:00:02] [%clk 00:02:41]} 32. fxe5 {[%emt
00:00:05] [%clk 00:01:46]} c5 {[%emt 00:00:05] [%clk 00:02:46]} 33. Rcf2 {[%emt
00:00:03] [%clk 00:01:53]} Qg6 {[%emt 00:00:32] [%clk 00:02:24]} 34. Rf5 {[%emt
00:00:04] [%clk 00:01:59]} Qc6+ {[%emt 00:00:03] [%clk 00:02:32]} 35. Kg1 {[%emt
00:00:09] [%clk 00:02:00]} Qe6 {[%emt 00:00:08] [%clk 00:02:34]} 36. Qg5+ {[%emt
00:00:12] [%clk 00:01:58]} Kh8 {[%emt 00:00:42] [%clk 00:02:01]} 37. Rf7 {[%emt
00:00:02] [%clk 00:02:06]} Re8 {[%emt 00:00:01] [%clk 00:02:10]} 38. Qg7# {[%emt
00:00:02] [%clk 00:15:10]} 1-0

[Site "Europe Echecs"]

[Event "Championnat d'Europe Rapide"]
[Date "2024.12.08"]
[White "Nikolovski, Nikola"]
[Black "Livaic, Leon"]
[WhiteElo "2407"]
[BlackElo "2560"]
[Round "8.26"]
[Result "0-1"]
[TimeControl "900+10"]

1. f4 {[%emt 00:00:04] [%clk 00:15:14]} d6 {[%emt 00:00:13] [%clk 00:15:07]} 2.
Nf3 {[%emt 00:00:08] [%clk 00:15:15]} Nf6 {[%emt 00:00:04] [%clk 00:15:13]} 3.
Nc3 {[%emt 00:00:47] [%clk 00:14:38]} d5 {[%emt 00:00:34] [%clk 00:14:49]} 4. e3
{[%emt 00:00:03] [%clk 00:14:46]} g6 {[%emt 00:00:09] [%clk 00:14:49]} 5. Be2
{[%emt 00:00:29] [%clk 00:14:27]} Bg7 {[%emt 00:00:02] [%clk 00:14:57]} 6. O-O
{[%emt 00:00:04] [%clk 00:14:33]} O-O {[%emt 00:00:03] [%clk 00:15:04]} 7. d3
{[%emt 00:00:03] [%clk 00:14:41]} b6 {[%emt 00:03:14] [%clk 00:12:00]} 8. Qe1
{[%emt 00:03:45] [%clk 00:11:06]} Bb7 {[%emt 00:00:14] [%clk 00:11:56]} 9. Qh4
{[%emt 00:01:59] [%clk 00:09:16]} e6 {[%emt 00:00:38] [%clk 00:11:28]} 10. Qh3
{[%emt 00:00:29] [%clk 00:08:57]} Nc6 {[%emt 00:01:29] [%clk 00:10:09]} 11. Nd1
{[%emt 00:01:33] [%clk 00:07:35]} Qe7 {[%emt 00:02:01] [%clk 00:08:18]} 12. Nf2
{[%emt 00:01:33] [%clk 00:06:12]} e5 {[%emt 00:00:37] [%clk 00:07:51]} 13. f5
{[%emt 00:00:02] [%clk 00:06:20]} e4 {[%emt 00:00:12] [%clk 00:07:49]} 14. dxe4
{[%emt 00:00:21] [%clk 00:06:09]} dxe4 {[%emt 00:00:23] [%clk 00:07:37]} 15. Nd4
{[%emt 00:01:50] [%clk 00:04:28]} Ne5 {[%emt 00:00:14] [%clk 00:07:32]} 16. Bd2
{[%emt 00:00:28] [%clk 00:04:10]} c5 {[%emt 00:01:12] [%clk 00:06:31]} 17. Nb5
{[%emt 00:00:01] [%clk 00:04:19]} Rad8 {[%emt 00:01:39] [%clk 00:05:03]} 18.
Rad1 {[%emt 00:00:02] [%clk 00:04:27]} Bc8 {[%emt 00:00:50] [%clk 00:04:23]} 19.
g4 {[%emt 00:01:18] [%clk 00:03:18]} h6 {[%emt 00:00:14] [%clk 00:04:19]} 20. a4
{[%emt 00:00:48] [%clk 00:02:39]} a6 {[%emt 00:00:34] [%clk 00:03:55]} 21. Na3
{[%emt 00:00:01] [%clk 00:02:48]} Bb7 {[%emt 00:00:13] [%clk 00:03:53]} 22. Bc3
{[%emt 00:00:54] [%clk 00:02:04]} Nf3+ {[%emt 00:00:29] [%clk 00:03:33]} 23. Kh1
{[%emt 00:00:02] [%clk 00:02:13]} Nd5 {[%emt 00:01:39] [%clk 00:02:04]} 24. Bxg7
{[%emt 00:01:08] [%clk 00:01:14]} Kxg7 {[%emt 00:00:02] [%clk 00:02:13]} 25.
Bxf3 {[%emt 00:00:37] [%clk 00:00:47]} exf3 {[%emt 00:00:02] [%clk 00:02:21]}
26. e4 {[%emt 00:00:27] [%clk 00:00:30]} Nf6 {[%emt 00:00:14] [%clk 00:02:17]}
27. Rde1 {[%emt 00:00:24] [%clk 00:00:16]} Qe5 {[%emt 00:01:46] [%clk 00:00:42]}
28. Nc4 {[%emt 00:00:03] [%clk 00:00:22]} Qf4 {[%emt 00:00:18] [%clk 00:00:33]}
29. g5 {[%emt 00:00:21] [%clk 00:00:13]} hxg5 {[%emt 00:00:13] [%clk 00:00:29]}
30. e5 {[%emt 00:00:02] [%clk 00:00:21]} Rh8 {[%emt 00:00:26] [%clk 00:00:13]}
31. exf6+ {[%emt 00:00:04] [%clk 00:00:27]} Kg8 {[%emt 00:00:01] [%clk
00:00:22]} 32. Qxh8+ {[%emt 00:00:23] [%clk 00:00:14]} Kxh8 {[%emt 00:00:01]
[%clk 00:00:32]} 33. Ne5 {[%clk 00:00:23]} Kg8 {[%emt 00:00:23] [%clk 00:00:19]}
34. fxg6 {[%emt 00:00:01] [%clk 00:00:32]} fxg6 {[%emt 00:00:15] [%clk
00:00:14]} 35. f7+ {[%emt 00:00:29] [%clk 00:00:12]} Kg7 {[%clk 00:00:23]} 36.
Rg1 {[%emt 00:00:10] [%clk 00:00:13]} Rh8 {[%emt 00:00:18] [%clk 00:00:16]} 37.
Neg4 {[%emt 00:00:03] [%clk 00:00:19]} Qxf7 {[%emt 00:00:12]} 38. Re5 {[%clk
00:00:28]} Bc8 {[%emt 00:00:13] [%clk 00:00:11]} 39. Rxg5 {[%emt 00:00:09] [%clk
00:00:28]} Bf5 {[%emt 00:00:06] [%clk 00:00:16]} 40. Ne5 {[%emt 00:00:05] [%clk
00:00:34]} Qe6 {[%emt 00:00:11] [%clk 00:00:13]} 41. Nxf3 {[%emt 00:00:14] [%clk
00:00:30]} Bxc2 {[%emt 00:00:11] [%clk 00:00:13]} 42. Re1 {[%emt 00:00:20] [%clk
00:00:20]} Qc6 {[%emt 00:00:08] [%clk 00:00:15]} 43. Rg3 {[%emt 00:00:16] [%clk
00:00:14]} Rf8 {[%emt 00:00:09] [%clk 00:00:15]} 44. Kg2 {[%emt 00:00:04] [%clk
00:00:21]} Bb3 {[%emt 00:00:12] [%clk 00:00:13]} 45. Re7+ {[%emt 00:00:13] [%clk
00:00:18]} Rf7 {[%emt 00:00:02] [%clk 00:00:21]} 46. Re3 {[%emt 00:00:15] [%clk
00:00:13]} Bd5 {[%emt 00:00:04] [%clk 00:00:27]} 47. Nd3 {[%emt 00:00:08] [%clk
00:00:15]} Qxa4 {[%emt 00:00:13] [%clk 00:00:24]} 48. Nde5 {[%emt 00:00:12]
[%clk 00:00:13]} Bxf3+ {[%emt 00:00:04] [%clk 00:00:30]} 49. Nxf3 {[%emt
00:00:01] [%clk 00:00:22]} Qc2+ {[%emt 00:00:04] [%clk 00:00:36]} 50. Kh3 {[%emt
00:00:02] [%clk 00:00:30]} Qf5+ {[%emt 00:00:13] [%clk 00:00:32]} 51. Kg2 {[%emt
00:00:02] [%clk 00:00:38]} Qc2+ {[%emt 00:00:02] [%clk 00:00:41]} 52. Kh3 {[%clk
00:00:48]} Qxb2 {[%emt 00:00:09] [%clk 00:00:42]} 53. Re6 {[%emt 00:00:39] [%clk
00:00:19]} Qb1 {[%emt 00:00:22] [%clk 00:00:30]} 54. Kg2 {[%emt 00:00:17] [%clk
00:00:12]} Qa2+ {[%emt 00:00:01] [%clk 00:00:38]} 0-1

[Site "Europe Echecs"]

[Event "Championnat d'Europe Rapide"]
[Date "2024.12.08"]
[White "Kazakouski, Valery"]
[Black "Gatineau, Yovann"]
[WhiteElo "2567"]
[BlackElo "2363"]
[Round "8.27"]
[Result "1-0"]
[TimeControl "900+10"]

1. Nf3 {[%emt 00:00:01] [%clk 00:15:18]} d5 {[%emt 00:00:03] [%clk 00:15:17]} 2.
e3 {[%emt 00:00:02] [%clk 00:15:27]} Nf6 {[%emt 00:00:02] [%clk 00:15:25]} 3. c4
{[%emt 00:00:01] [%clk 00:15:35]} e6 {[%emt 00:00:02] [%clk 00:15:34]} 4. Nc3
{[%emt 00:00:02] [%clk 00:15:43]} Bd6 {[%emt 00:00:02] [%clk 00:15:41]} 5. b3
{[%emt 00:00:08] [%clk 00:15:46]} O-O {[%emt 00:00:03] [%clk 00:15:48]} 6. Bb2
{[%emt 00:00:08] [%clk 00:15:48]} Re8 {[%emt 00:00:02] [%clk 00:15:56]} 7. Qc2
{[%emt 00:00:28] [%clk 00:15:30]} c5 {[%emt 00:00:40] [%clk 00:15:27]} 8. cxd5
{[%emt 00:01:32] [%clk 00:14:08]} exd5 {[%emt 00:00:05] [%clk 00:15:32]} 9. Bb5
{[%emt 00:00:12] [%clk 00:14:06]} Bd7 {[%emt 00:01:36] [%clk 00:14:07]} 10. Bxd7
{[%emt 00:02:04] [%clk 00:12:12]} Nbxd7 {[%emt 00:00:05] [%clk 00:14:10]} 11. d4
{[%emt 00:00:57] [%clk 00:11:26]} Rc8 {[%emt 00:00:35] [%clk 00:13:45]} 12. O-O
{[%emt 00:00:23] [%clk 00:11:11]} cxd4 {[%emt 00:00:59] [%clk 00:12:58]} 13.
Nxd4 {[%emt 00:01:48] [%clk 00:09:32]} Ne4 {[%emt 00:00:26] [%clk 00:12:43]} 14.
Rac1 {[%emt 00:03:09] [%clk 00:06:33]} Nxc3 {[%emt 00:04:51] [%clk 00:08:02]}
15. Bxc3 {[%emt 00:00:02] [%clk 00:06:41]} Ba3 {[%emt 00:00:07] [%clk 00:08:06]}
16. Rcd1 {[%emt 00:00:31] [%clk 00:06:20]} Bb4 {[%emt 00:00:12] [%clk 00:08:04]}
17. Ne2 {[%emt 00:00:03] [%clk 00:06:27]} Qc7 {[%emt 00:03:27] [%clk 00:04:47]}
18. Qf5 {[%emt 00:01:19] [%clk 00:05:18]} Bxc3 {[%emt 00:00:27] [%clk 00:04:31]}
19. Nxc3 {[%emt 00:00:04] [%clk 00:05:24]} Re5 {[%emt 00:00:22] [%clk 00:04:18]}
20. Qh3 {[%emt 00:00:27] [%clk 00:05:07]} Qxc3 {[%emt 00:00:48] [%clk 00:03:40]}
21. Qxd7 {[%emt 00:00:05] [%clk 00:05:12]} Qc6 {[%emt 00:00:12] [%clk 00:03:39]}
22. Qg4 {[%emt 00:00:17] [%clk 00:05:05]} Re4 {[%emt 00:00:25] [%clk 00:03:25]}
23. Qf5 {[%emt 00:00:06] [%clk 00:05:08]} g6 {[%emt 00:01:12] [%clk 00:02:24]}
24. Qxd5 {[%emt 00:01:51] [%clk 00:03:27]} Qxd5 {[%emt 00:00:02] [%clk
00:02:32]} 25. Rxd5 {[%emt 00:00:02] [%clk 00:03:35]} Rc2 {[%emt 00:00:01] [%clk
00:02:41]} 26. Rd7 {[%emt 00:00:49] [%clk 00:02:56]} Rb4 {[%emt 00:00:31] [%clk
00:02:21]} 27. Ra1 {[%emt 00:00:36] [%clk 00:02:29]} a5 {[%emt 00:00:11] [%clk
00:02:19]} 28. g3 {[%emt 00:00:10] [%clk 00:02:29]} h5 {[%emt 00:00:29] [%clk
00:02:01]} 29. Kg2 {[%emt 00:01:01] [%clk 00:01:38]} Kg7 {[%emt 00:00:02] [%clk
00:02:09]} 30. h3 {[%emt 00:00:58] [%clk 00:00:50]} b5 {[%emt 00:00:46] [%clk
00:01:33]} 31. Rb7 {[%emt 00:00:17] [%clk 00:00:43]} a4 {[%emt 00:00:51] [%clk
00:00:53]} 32. bxa4 {[%emt 00:00:01] [%clk 00:00:52]} Rxa4 {[%emt 00:00:03]
[%clk 00:01:00]} 33. a3 {[%emt 00:00:01] [%clk 00:01:01]} Rd2 {[%emt 00:00:45]
[%clk 00:00:25]} 34. Rc1 {[%emt 00:00:30] [%clk 00:00:41]} Rc4 {[%emt 00:00:01]
[%clk 00:00:34]} 35. Rxc4 {[%emt 00:00:32] [%clk 00:00:19]} bxc4 {[%emt
00:00:01] [%clk 00:00:43]} 36. Rc7 {[%emt 00:00:01] [%clk 00:00:27]} Ra2 {[%emt
00:00:01] [%clk 00:00:51]} 37. Rxc4 {[%clk 00:00:36]} Rxa3 {[%emt 00:00:01]
[%clk 00:01:00]} 38. Kf3 {[%clk 00:00:45]} Ra2 {[%emt 00:00:11] [%clk 00:01:00]}
39. Rd4 {[%emt 00:00:01] [%clk 00:00:54]} Rb2 {[%emt 00:00:01] [%clk 00:01:08]}
40. e4 {[%clk 00:01:03]} Ra2 {[%emt 00:00:04] [%clk 00:01:15]} 41. Ke3 {[%emt
00:00:01] [%clk 00:01:12]} Kf6 {[%emt 00:00:10] [%clk 00:01:14]} 42. Rd2 {[%emt
00:00:20] [%clk 00:01:02]} Ra3+ {[%emt 00:00:04] [%clk 00:01:20]} 43. Rd3 {[%clk
00:01:11]} Ra2 {[%emt 00:00:01] [%clk 00:01:29]} 44. Rb3 {[%emt 00:00:34] [%clk
00:00:48]} Rc2 {[%emt 00:00:03] [%clk 00:01:35]} 45. Rb6+ {[%emt 00:00:11] [%clk
00:00:47]} Ke7 {[%emt 00:00:09] [%clk 00:01:36]} 46. h4 {[%emt 00:00:10] [%clk
00:00:47]} Ra2 {[%emt 00:00:04] [%clk 00:01:42]} 47. f3 {[%emt 00:00:02] [%clk
00:00:55]} Rg2 {[%emt 00:00:37] [%clk 00:01:15]} 48. Kf4 {[%emt 00:00:05] [%clk
00:01:01]} Rf2 {[%emt 00:00:20] [%clk 00:01:03]} 49. Rb7+ {[%emt 00:00:46] [%clk
00:00:27]} Ke6 {[%emt 00:00:03] [%clk 00:01:10]} 50. Rb6+ {[%emt 00:00:01] [%clk
00:00:36]} Ke7 {[%clk 00:01:19]} 51. Rb3 {[%clk 00:00:45]} Kf6 {[%emt 00:00:45]
[%clk 00:00:44]} 52. Ra3 {[%emt 00:00:08] [%clk 00:00:48]} Rf1 {[%emt 00:00:04]
[%clk 00:00:49]} 53. Ra6+ {[%emt 00:00:09] [%clk 00:00:49]} Ke7 {[%emt 00:00:02]
[%clk 00:00:56]} 54. Ra5 {[%emt 00:00:03] [%clk 00:00:56]} Ke6 {[%emt 00:00:18]
[%clk 00:00:48]} 55. Ke3 {[%emt 00:00:04] [%clk 00:01:02]} Rg1 {[%emt 00:00:13]
[%clk 00:00:45]} 56. Kf2 {[%emt 00:00:19] [%clk 00:00:54]} Rh1 {[%emt 00:00:06]
[%clk 00:00:48]} 57. f4 {[%emt 00:00:08] [%clk 00:00:57]} Rb1 {[%emt 00:00:27]
[%clk 00:00:32]} 58. f5+ {[%emt 00:00:23] [%clk 00:00:44]} Kf6 {[%emt 00:00:20]
[%clk 00:00:21]} 59. Ra6+ {[%emt 00:00:14] [%clk 00:00:41]} Ke5 {[%emt 00:00:01]
[%clk 00:00:30]} 60. fxg6 {[%clk 00:00:50]} fxg6 {[%emt 00:00:01] [%clk
00:00:39]} 61. Rxg6 {[%emt 00:00:12] [%clk 00:00:48]} Rb2+ {[%emt 00:00:09]
[%clk 00:00:39]} 62. Kf3 {[%emt 00:00:01] [%clk 00:00:57]} Rb3+ {[%emt 00:00:02]
[%clk 00:00:48]} 63. Kg2 {[%clk 00:01:07]} Kxe4 {[%emt 00:00:26] [%clk
00:00:32]} 64. Rg5 {[%emt 00:00:04] [%clk 00:01:12]} Rb2+ {[%emt 00:00:31] [%clk
00:00:12]} 65. Kh3 {[%emt 00:00:01] [%clk 00:01:21]} Rb8 {[%emt 00:00:09] [%clk
00:00:13]} 66. Rxh5 {[%emt 00:00:02] [%clk 00:01:28]} Rg8 {[%emt 00:00:04] [%clk
00:00:19]} 67. Ra5 {[%emt 00:00:20] [%clk 00:01:19]} Kf3 {[%emt 00:00:15] [%clk
00:00:14]} 68. Rf5+ {[%emt 00:00:01] [%clk 00:01:27]} Ke4 {[%emt 00:00:02] [%clk
00:00:22]} 69. Rf1 {[%emt 00:00:01] [%clk 00:01:36]} Kd5 {[%emt 00:00:05] [%clk
00:15:10]} 1-0

[Site "Europe Echecs"]

[Event "Championnat d'Europe Rapide"]
[Date "2024.12.08"]
[White "Mohr, Georg"]
[Black "Alonso Rosell, Alvar"]
[WhiteElo "2385"]
[BlackElo "2532"]
[Round "8.28"]
[Result "1-0"]
[TimeControl "900+10"]

1. d4 {[%clk 00:15:19]} Nf6 {[%emt 00:00:01] [%clk 00:15:19]} 2. Nf3 {[%emt
00:00:02] [%clk 00:15:27]} c5 {[%emt 00:00:02] [%clk 00:15:27]} 3. e3 {[%emt
00:00:08] [%clk 00:15:29]} g6 {[%emt 00:00:03] [%clk 00:15:34]} 4. c4 {[%emt
00:00:25] [%clk 00:15:15]} cxd4 {[%emt 00:00:13] [%clk 00:15:31]} 5. exd4 {[%emt
00:00:45] [%clk 00:14:40]} d5 {[%emt 00:00:02] [%clk 00:15:39]} 6. cxd5 {[%emt
00:00:02] [%clk 00:14:48]} Bg7 {[%emt 00:00:58] [%clk 00:14:50]} 7. Nc3 {[%emt
00:00:02] [%clk 00:14:57]} Nxd5 {[%emt 00:00:50] [%clk 00:14:10]} 8. Qb3 {[%emt
00:01:39] [%clk 00:13:28]} Nxc3 {[%emt 00:00:06] [%clk 00:14:15]} 9. bxc3 {[%emt
00:00:30] [%clk 00:13:08]} Nc6 {[%emt 00:00:43] [%clk 00:13:42]} 10. Be2 {[%emt
00:00:33] [%clk 00:12:45]} O-O {[%emt 00:00:04] [%clk 00:13:48]} 11. O-O {[%emt
00:00:01] [%clk 00:12:54]} Qc7 {[%emt 00:00:26] [%clk 00:13:32]} 12. Bg5 {[%emt
00:00:17] [%clk 00:12:47]} Be6 {[%emt 00:01:20] [%clk 00:12:22]} 13. Qa3 {[%emt
00:01:07] [%clk 00:11:49]} Rfe8 {[%emt 00:00:18] [%clk 00:12:14]} 14. Rfd1
{[%emt 00:00:20] [%clk 00:11:38]} Bd5 {[%emt 00:01:02] [%clk 00:11:23]} 15. Rac1
{[%emt 00:01:02] [%clk 00:10:46]} Rac8 {[%emt 00:00:51] [%clk 00:10:42]} 16. Be3
{[%emt 00:00:24] [%clk 00:10:32]} Rcd8 {[%emt 00:03:40] [%clk 00:07:12]} 17. Nd2
{[%emt 00:01:13] [%clk 00:09:29]} e5 {[%emt 00:00:17] [%clk 00:07:06]} 18. Bc4
{[%emt 00:01:57] [%clk 00:07:41]} exd4 {[%emt 00:00:30] [%clk 00:06:46]} 19.
cxd4 {[%emt 00:00:40] [%clk 00:07:11]} Qd7 {[%emt 00:01:58] [%clk 00:04:58]} 20.
Bxd5 {[%emt 00:01:17] [%clk 00:06:04]} Qxd5 {[%emt 00:00:01] [%clk 00:05:07]}
21. Nf3 {[%emt 00:00:05] [%clk 00:06:08]} Bf8 {[%emt 00:00:10] [%clk 00:05:08]}
22. Qb2 {[%emt 00:00:35] [%clk 00:05:44]} Na5 {[%emt 00:00:24] [%clk 00:04:54]}
23. Qc2 {[%emt 00:00:42] [%clk 00:05:11]} Re6 {[%emt 00:00:25] [%clk 00:04:40]}
24. Ne5 {[%emt 00:00:53] [%clk 00:04:27]} Nc6 {[%emt 00:01:40] [%clk 00:03:10]}
25. Nd3 {[%emt 00:00:59] [%clk 00:03:38]} Nb4 {[%emt 00:01:18] [%clk 00:02:03]}
26. Nxb4 {[%emt 00:00:32] [%clk 00:03:16]} Bxb4 {[%emt 00:00:01] [%clk
00:02:12]} 27. Qa4 {[%clk 00:03:25]} Bf8 {[%emt 00:00:16] [%clk 00:02:05]} 28.
Rc2 {[%emt 00:01:41] [%clk 00:01:55]} Ra6 {[%emt 00:00:09] [%clk 00:02:06]} 29.
Qb3 {[%clk 00:02:04]} Kg7 {[%emt 00:01:10] [%clk 00:01:06]} 30. Qb2 {[%emt
00:00:41] [%clk 00:01:33]} Ba3 {[%emt 00:00:05] [%clk 00:01:11]} 31. Qc3 {[%emt
00:00:15] [%clk 00:01:28]} Bd6 {[%emt 00:00:03] [%clk 00:01:18]} 32. Qd2 {[%emt
00:00:03] [%clk 00:01:35]} h5 {[%emt 00:00:36] [%clk 00:00:52]} 33. h4 {[%emt
00:00:09] [%clk 00:01:35]} Ra4 {[%emt 00:00:15] [%clk 00:00:48]} 34. Bg5 {[%emt
00:00:21] [%clk 00:01:24]} Rd7 {[%emt 00:00:12] [%clk 00:00:45]} 35. Qe3 {[%emt
00:00:41] [%clk 00:00:54]} Rxa2 {[%emt 00:00:30] [%clk 00:00:26]} 36. Rc8 {[%emt
00:00:02] [%clk 00:01:01]} Qe6 {[%emt 00:00:19] [%clk 00:00:17]} 37. Qf3 {[%emt
00:00:12] [%clk 00:00:59]} f6 {[%emt 00:00:13] [%clk 00:00:15]} 38. Bxf6+ {[%emt
00:00:15] [%clk 00:00:53]} Qxf6 {[%emt 00:00:09] [%clk 00:00:16]} 39. Rg8+
{[%clk 00:01:02]} Kf7 {[%emt 00:00:09] [%clk 00:00:18]} 40. Qd5+ {[%emt
00:00:03]} Qe6 {[%emt 00:00:10] [%clk 00:00:17]} 41. Rg7+ {[%clk 00:01:20]} Kxg7
{[%emt 00:00:16] [%clk 00:00:00]} 42. Qxe6 {[%emt 00:00:01] [%clk 00:01:20]} 1-0

[Site "Europe Echecs"]